[Event "Karel Janecek Open 2025"]
[Site "Prague"]
[Date "2025.03.02"]
[Round "4.3"]
[White "Prokofiev, Valentyn"]
[Black "Beerdsen, Thomas"]
[Result "0-1"]
[Annotator "ChessBase"]
[ECO "B13"]
[WhiteElo "2420"]
[BlackElo "2511"]
[PlyCount "168"]
[EventDate "2025.02.21"]
[EventType "swiss"]
[EventCountry "CZE"]
[SourceTitle "playchess.com"]
[Source "ChessBase"]
[SourceQuality "1"]
[TimeControl "40/5400+30:1800+30"]

1. d4 {[%emt 0:04:18]} d5 {[%emt 0:00:06]} 2. Bf4 {[%emt 0:00:04]} c5 {[%emt 0:03:03]} 3. e3 {[%emt 0:00:03]} Nc6 {[%emt 0:02:37]} 4. c3 {[%emt 0:00:33]} cxd4 {[%emt 0:02:57]} 5. exd4 {[%emt 0:00:04]} Nf6 {[%emt 0:00:12]} 6. Nd2 {[%emt 0:00:08]} Bf5 {[%emt 0:02:24]} 7. Be2 {[%emt 0:01:41]} e6 {[%emt 0:03:38]} 8. Ngf3 {[%emt 0:00:07]} Bd6 {[%emt 0:01:55]} 9. Bxd6 {[%emt 0:00:05]} Qxd6 {[%emt 0:00:04]} 10. O-O {[%emt 0:00:10]} h6 {[%emt 0:01:49]} 11. Re1 {[%emt 0:00:14]} O-O {[%emt 0:00:21]} 12. a4 {[%emt 0:00:06]} Rfc8 {[%emt 0:03:06]} 13. a5 {[%emt 0:05:28]} Rab8 {[%emt 0:04:47]} 14. Bb5 {[%emt 0:04:45]} Nd7 {[%emt 0:03:28]} 15. Qa4 {[%emt 0:05:11]} Rc7 {[%emt 0:03:18]} 16. Qa3 {[%emt 0:08:59]} Qxa3 {[%emt 0:07:37]} 17. Rxa3 {[%emt 0:00:56]} g5 {[%emt 0:08:23]} 18. h3 {[%emt 0:15:57]} Kf8 {[%emt 0:08:30]} 19. Kh2 {[%emt 0:18:39]} Ke7 {[%emt 0:04:21]} 20. g4 {[%emt 0:05:30]} Bh7 {[%emt 0:02:05]} 21. Ng1 {[%emt 0:06:58]} Kd6 {[%emt 0:06:05]} 22. f4 {[%emt 0:02:27]} gxf4 {[%emt 0:03:43]} 23. Ne2 {[%emt 0:01:14]} f6 {[%emt 0:00:54]} 24. c4 {[%emt 0:06:30]} e5 {[%emt 0:02:59]} 25. c5+ {[%emt 0:01:12]} Ke7 {[%emt 0:10:26]} 26. Nxf4 {[%emt 0:01:04]} Bg8 {[%emt 0:00:28]} 27. dxe5 {[%emt 0:04:53]} fxe5 {[%emt 0:00:14]} 28. Rd3 {[%emt 0:00:37]} a6 {[%emt 0:00:43]} 29. Rxd5 {[%emt 0:04:44]} axb5 {[%emt 0:02:07]} 30. Rd6 {[%emt 0:00:04]} Nxc5 {[%emt 0:01:58]} 31. Rxh6 {[%emt 0:00:06]} Kd7 {[%emt 0:02:42]} 32. Nh5 {[%emt 0:01:25]} Rd8 {[%emt 0:02:37]} 33. Nf3 {[%emt 0:01:06]} e4 {[%emt 0:01:09]} 34. Nh4 {[%emt 0:00:35]} Kc8 {[%emt 0:00:17]} 35. Nf5 {[%emt 0:00:07]} Ne5 {[%emt 0:04:01]} 36. Kg3 {[%emt 0:00:44]} Ned3 {[%emt 0:00:52]} 37. Re2 {[%emt 0:00:51]} Be6 {[%emt 0:01:02]} 38. Nhg7 {[%emt 0:00:39]} Bxf5 {[%emt 0:00:21]} 39. Nxf5 {[%emt 0:00:03]} Rf8 {[%emt 0:01:41]} 40. Nd6+ {[%emt 0:01:24]} Kb8 {[%emt 0:00:18]} 41. Nxe4 {[%emt 0:09:38]} Nc1 {[%emt 0:06:59]} 42. Re1 {[%emt 0:01:24]} Re8 {[%emt 0:01:04]} 43. Nd6 {[%emt 0:00:06]} Rxe1 {[%emt 0:02:40]} 44. Rh8+ {[%emt 0:00:05]} Ka7 {[%emt 0:00:05]} 45. Nxb5+ {[%emt 0:00:04]} Ka6 {[%emt 0:00:05]} 46. Nxc7+ {[%emt 0:00:08]} Kxa5 {[%emt 0:00:06]} 47. h4 {[%emt 0:07:17]} N1d3 {[%emt 0:02:09]} 48. g5 {[%emt 0:01:59]} Rg1+ {[%emt 0:02:05]} 49. Kf3 {[%emt 0:03:04]} Kb6 {[%emt 0:05:48]} 50. Nd5+ {[%emt 0:00:51]} Kc6 {[%emt 0:00:07]} 51. Ne3 {[%emt 0:00:34]} Ne5+ {[%emt 0:02:27]} 52. Kf2 {[%emt 0:00:50]} Rb1 {[%emt 0:00:15]} 53. Rc8+ {[%emt 0:02:07]} Kd7 {[%emt 0:00:48]} 54. Rf8 {[%emt 0:02:55]} Ne4+ {[%emt 0:02:06]} 55. Kg2 {[%emt 0:01:39]} Rxb2+ {[%emt 0:00:26]} 56. Kg1 {[%emt 0:00:49]} Ng6 {[%emt 0:00:52]} 57. Rf7+ {[%emt 0:03:52]} Ke6 {[%emt 0:01:38]} 58. Rf1 {[%emt 0:00:50]} Nxh4 {[%emt 0:00:43]} 59. g6 {[%emt 0:01:21]} Nxg6 {[%emt 0:00:21]} 60. Nc4 {[%emt 0:00:22]} Rb4 {[%emt 0:01:40]} 61. Ne3 {[%emt 0:00:38]} Rb3 {[%emt 0:00:44]} 62. Nf5 {[%emt 0:00:13]} Ke5 {[%emt 0:00:25]} 63. Nh6 {[%emt 0:00:28]} Nh4 {[%emt 0:00:48]} 64. Nf7+ {[%emt 0:00:14]} Kd4 {[%emt 0:00:52]} 65. Rd1+ {[%emt 0:00:22]} Ke3 {[%emt 0:00:13]} 66. Rd8 {[%emt 0:01:13]} Nf3+ {[%emt 0:00:33]} 67. Kg2 {[%emt 0:00:02]} Rb2+ {[%emt 0:00:08]} 68. Kh3 {[%emt 0:00:02]} Nfg5+ {[%emt 0:00:09]} 69. Nxg5 {[%emt 0:00:09]} Nxg5+ {[%emt 0:00:06]} 70. Kg4 {[%emt 0:00:01]} Ne4 {[%emt 0:00:18]} 71. Re8 {[%emt 0:00:12]} Kd4 {[%emt 0:00:10]} 72. Rd8+ {[%emt 0:00:03]} Kc5 {[%emt 0:00:09]} 73. Kf4 {[%emt 0:00:06]} Nd6 {[%emt 0:00:05]} 74. Ke3 {[%emt 0:00:06]} b5 {[%emt 0:00:13]} 75. Kd3 {[%emt 0:00:07]} Rb3+ {[%emt 0:00:07]} 76. Kc2 {[%emt 0:00:03]} Rh3 {[%emt 0:00:06]} 77. Rg8 {[%emt 0:00:10]} Nc4 {[%emt 0:00:35]} 78. Rg7 {[%emt 0:00:31]} Rh2+ {[%emt 0:00:08]} 79. Kc1 {[%emt 0:00:16]} b4 {[%emt 0:00:21]} 80. Rg5+ {[%emt 0:00:03]} Kb6 {[%emt 0:00:06]} 81. Rg6+ {[%emt 0:00:09]} Kb5 {[%emt 0:00:04]} 82. Rg5+ {[%emt 0:00:21]} Ka4 {[%emt 0:00:05]} 83. Rg1 {[%emt 0:01:42]} b3 {[%emt 0:00:09]} 84. Kb1 {[%emt 0:00:14]} Na3+ {[%emt 0:00:06]} 0-1

[Event "Karel Janecek Open 2025"]
[Site "Prague"]
[Date "2025.03.02"]
[Round "4.4"]
[White "Vantika Agrawal"]
[Black "Ioannidis, Evgenios"]
[Result "0-1"]
[Annotator "ChessBase"]
[ECO "E16"]
[WhiteElo "2411"]
[BlackElo "2484"]
[PlyCount "92"]
[EventDate "2025.02.21"]
[EventType "swiss"]
[EventCountry "CZE"]
[SourceTitle "playchess.com"]
[Source "ChessBase"]
[SourceQuality "1"]
[TimeControl "40/5400+30:1800+30"]

1. d4 {[%emt 0:04:09]} e6 {[%emt 0:00:11]} 2. c4 {[%emt 0:00:32]} b6 {[%emt 0:00:14]} 3. g3 {[%emt 0:02:58]} Bb7 {[%emt 0:00:19]} 4. Nf3 {[%emt 0:00:07]} Bb4+ {[%emt 0:00:16]} 5. Bd2 {[%emt 0:00:38]} c5 {[%emt 0:04:45]} 6. Bg2 {[%emt 0:11:55]} Nf6 {[%emt 0:00:09]} 7. Bxb4 {[%emt 0:01:28]} cxb4 {[%emt 0:00:06]} 8. O-O {[%emt 0:00:43]} a5 {[%emt 0:00:09]} 9. Qd3 {[%emt 0:04:14]} O-O {[%emt 0:00:16]} 10. Nbd2 {[%emt 0:00:56]} d6 {[%emt 0:00:20]} 11. e4 {[%emt 0:08:59]} e5 {[%emt 0:00:22]} 12. Rfe1 {[%emt 0:02:12]} Nbd7 {[%emt 0:00:59]} 13. Nf1 {[%emt 0:21:27]} Re8 {[%emt 0:02:13]} 14. N3d2 {[%emt 0:03:08]} Nf8 {[%emt 0:03:04]} 15. d5 {[%emt 0:07:30]} N6d7 {[%emt 0:04:30]} 16. Ne3 {[%emt 0:02:12]} Nc5 {[%emt 0:00:43]} 17. Qc2 {[%emt 0:01:39]} Bc8 {[%emt 0:02:40]} 18. a3 {[%emt 0:01:12]} Bd7 {[%emt 0:01:34]} 19. Bf1 {[%emt 0:08:34]} b3 {[%emt 0:01:59]} 20. Qc3 {[%emt 0:02:58]} a4 {[%emt 0:01:04]} 21. Bg2 {[%emt 0:04:18]} h5 {[%emt 0:02:18]} 22. h4 {[%emt 0:01:00]} Nh7 {[%emt 0:04:19]} 23. Kh2 {[%emt 0:03:25]} g6 {[%emt 0:08:17]} 24. Rf1 {[%emt 0:01:56]} f5 {[%emt 0:03:44]} 25. f4 {[%emt 0:01:04]} Qf6 {[%emt 0:09:07]} 26. Rac1 {[%emt 0:02:15]} Re7 {[%emt 0:02:09]} 27. exf5 {[%emt 0:01:32]} gxf5 {[%emt 0:00:08]} 28. Bh3 {[%emt 0:00:56]} Rae8 {[%emt 0:04:20]} 29. fxe5 {[%emt 0:00:29]} Qxe5 {[%emt 0:01:15]} 30. Rf3 {[%emt 0:00:30]} Qxc3 {[%emt 0:02:30]} 31. Rxc3 {[%emt 0:00:09]} Nf6 {[%emt 0:00:05]} 32. Kg2 {[%emt 0:00:50]} Ng4 {[%emt 0:00:54]} 33. Ndf1 {[%emt 0:00:33]} Ne5 {[%emt 0:02:20]} 34. Rxf5 {[%emt 0:00:29]} Ne4 {[%emt 0:01:33]} 35. Rc1 {[%emt 0:00:30]} Nd3 {[%emt 0:02:46]} 36. Rb1 {[%emt 0:00:15]} Bxf5 {[%emt 0:00:07]} 37. Nxf5 {[%emt 0:00:44]} Re5 {[%emt 0:00:05]} 38. N1e3 {[%emt 0:00:31]} Nxg3 {[%emt 0:01:38]} 39. Nxd6 {[%emt 0:00:32]} Rf8 {[%emt 0:00:41]} 40. Be6+ {[%emt 0:00:28]} Kg7 {[%emt 0:00:21]} 41. Kxg3 {[%emt 0:12:02]} Rxe3+ {[%emt 0:00:06]} 42. Kh2 {[%emt 0:00:18]} Re2+ {[%emt 0:01:48]} 43. Kg3 {[%emt 0:01:27]} Rff2 {[%emt 0:00:44]} 44. Nf5+ {[%emt 0:01:30]} Kf6 {[%emt 0:00:07]} 45. Rd1 {[%emt 0:00:52]} Rg2+ {[%emt 0:00:04]} 46. Kf3 {[%emt 0:01:14]} Ne5+ {[%emt 0:00:05]} 0-1

[Event "Karel Janecek Open 2025"]
[Site "Prague"]
[Date "2025.03.02"]
[Round "4.5"]
[White "Kolb, Tobias"]
[Black "Vykouk, Jan"]
[Result "0-1"]
[Annotator "ChessBase"]
[ECO "E51"]
[WhiteElo "2410"]
[BlackElo "2478"]
[PlyCount "110"]
[EventDate "2025.02.21"]
[EventType "swiss"]
[EventCountry "CZE"]
[SourceTitle "playchess.com"]
[Source "ChessBase"]
[SourceQuality "1"]
[TimeControl "40/5400+30:1800+30"]

1. d4 {[%emt 0:00:52]} Nf6 {[%emt 0:00:06]} 2. c4 {[%emt 0:00:07]} e6 {[%emt 0:00:06]} 3. Nc3 {[%emt 0:00:02]} Bb4 {[%emt 0:00:06]} 4. e3 {[%emt 0:00:03]} O-O {[%emt 0:00:15]} 5. Bd2 {[%emt 0:00:02]} d5 {[%emt 0:00:22]} 6. Nf3 {[%emt 0:00:05]} b6 {[%emt 0:00:15]} 7. Rc1 {[%emt 0:00:16]} Re8 {[%emt 0:12:01]} 8. cxd5 {[%emt 0:09:38]} exd5 {[%emt 0:00:07]} 9. Bd3 {[%emt 0:00:02]} Bf8 {[%emt 0:04:35]} 10. Ne5 {[%emt 0:03:36]} Bb7 {[%emt 0:05:00]} 11. O-O {[%emt 0:13:17]} c5 {[%emt 0:00:09]} 12. Be1 {[%emt 0:21:42]} Nc6 {[%emt 0:03:47]} 13. Nxc6 {[%emt 0:14:09]} Bxc6 {[%emt 0:00:05]} 14. b3 {[%emt 0:06:58]} Qd7 {[%emt 0:07:16]} 15. Ne2 {[%emt 0:00:39]} Bd6 {[%emt 0:10:35]} 16. Ng3 {[%emt 0:01:34]} cxd4 {[%emt 0:03:19]} 17. exd4 {[%emt 0:00:04]} Bb5 {[%emt 0:00:17]} 18. Bxb5 {[%emt 0:03:28]} Qxb5 {[%emt 0:00:06]} 19. Nf5 {[%emt 0:00:03]} Bxh2+ {[%emt 0:01:13]} 20. Kxh2 {[%emt 0:00:08]} Qxf1 {[%emt 0:00:06]} 21. Qd2 {[%emt 0:05:39]} Qe2 {[%emt 0:03:25]} 22. Qg5 {[%emt 0:01:30]} Qh5+ {[%emt 0:01:12]} 23. Qxh5 {[%emt 0:00:03]} Nxh5 {[%emt 0:00:07]} 24. Bd2 {[%emt 0:00:45]} h6 {[%emt 0:03:29]} 25. Rc7 {[%emt 0:00:21]} Nf6 {[%emt 0:00:29]} 26. Bf4 {[%emt 0:00:48]} Red8 {[%emt 0:02:33]} 27. f3 {[%emt 0:01:13]} Rd7 {[%emt 0:01:56]} 28. Ne7+ {[%emt 0:00:43]} Kh7 {[%emt 0:00:27]} 29. Rxd7 {[%emt 0:00:08]} Nxd7 {[%emt 0:00:05]} 30. Nxd5 {[%emt 0:00:03]} Re8 {[%emt 0:01:05]} 31. Nc3 {[%emt 0:00:34]} g5 {[%emt 0:01:17]} 32. Bd2 {[%emt 0:00:08]} Kg6 {[%emt 0:01:08]} 33. Kg3 {[%emt 0:00:11]} f5 {[%emt 0:02:26]} 34. Kf2 {[%emt 0:00:04]} Nf6 {[%emt 0:00:58]} 35. Nb5 {[%emt 0:00:54]} Nd5 {[%emt 0:01:51]} 36. a4 {[%emt 0:00:38]} a6 {[%emt 0:10:43]} 37. Nd6 {[%emt 0:00:17]} Re7 {[%emt 0:00:48]} 38. Nc4 {[%emt 0:01:01]} f4 {[%emt 0:00:37]} 39. Ne5+ {[%emt 0:00:28]} Kf5 {[%emt 0:00:13]} 40. Ke2 {[%emt 0:00:19]} h5 {[%emt 0:00:51]} 41. Kd3 {[%emt 0:30:03]} b5 {[%emt 0:30:57]} 42. Nc6 {[%emt 0:01:27]} Re6 {[%emt 0:02:06]} 43. Nd8 {[%emt 0:01:42]} Rf6 {[%emt 0:00:46]} 44. Nb7 {[%emt 0:00:25]} g4 {[%emt 0:00:34]} 45. fxg4+ {[%emt 0:00:04]} hxg4 {[%emt 0:00:21]} 46. Nc5 {[%emt 0:00:03]} g3 {[%emt 0:03:20]} 47. axb5 {[%emt 0:01:47]} axb5 {[%emt 0:00:06]} 48. Ke2 {[%emt 0:00:02]} Kg4 {[%emt 0:00:25]} 49. Nd7 {[%emt 0:01:11]} Ra6 {[%emt 0:00:39]} 50. Kd3 {[%emt 0:01:17]} Kf5 {[%emt 0:00:52]} 51. Ne5 {[%emt 0:00:34]} Ra3 {[%emt 0:00:32]} 52. Kc2 {[%emt 0:00:12]} Ke4 {[%emt 0:00:42]} 53. Nf3 {[%emt 0:01:59]} Ra2+ {[%emt 0:01:47]} 54. Kb1 {[%emt 0:00:14]} Rxd2 {[%emt 0:00:42]} 55. Nxd2+ {[%emt 0:00:05]} Kxd4 {[%emt 0:00:05]} 0-1

[Event "Karel Janecek Open 2025"]
[Site "Prague"]
[Date "2025.03.02"]
[Round "4.6"]
[White "Stork, Oliver"]
[Black "Haring, Filip"]
[Result "1/2-1/2"]
[Annotator "ChessBase"]
[ECO "E60"]
[WhiteElo "2395"]
[BlackElo "2470"]
[PlyCount "85"]
[EventDate "2025.02.21"]
[EventType "swiss"]
[EventCountry "CZE"]
[SourceTitle "playchess.com"]
[Source "ChessBase"]
[SourceQuality "1"]
[TimeControl "40/5400+30:1800+30"]

1. d4 {[%emt 0:05:23]} Nf6 {[%emt 0:00:39]} 2. Nf3 {[%emt 0:00:14]} g6 {[%emt 0:04:44]} 3. c4 {[%emt 0:00:26]} Bg7 {[%emt 0:00:31]} 4. g3 {[%emt 0:00:08]} d6 {[%emt 0:00:24]} 5. Bg2 {[%emt 0:00:09]} Bf5 {[%emt 0:00:21]} 6. O-O {[%emt 0:06:40]} O-O {[%emt 0:01:35]} 7. Ne1 {[%emt 0:03:59]} Qc8 {[%emt 0:08:40]} 8. Nc3 {[%emt 0:01:16]} Nc6 {[%emt 0:05:17]} 9. e4 {[%emt 0:02:25]} Bg4 {[%emt 0:01:35]} 10. f3 {[%emt 0:03:30]} Bd7 {[%emt 0:10:33]} 11. Be3 {[%emt 0:02:15]} b6 {[%emt 0:08:38]} 12. Rc1 {[%emt 0:05:32]} e5 {[%emt 0:02:16]} 13. d5 {[%emt 0:04:10]} Nd4 {[%emt 0:09:08]} 14. Bxd4 {[%emt 0:13:30]} exd4 {[%emt 0:00:02]} 15. Qxd4 {[%emt 0:00:06]} Qa6 {[%emt 0:06:53]} 16. Qd3 {[%emt 0:13:15]} h5 {[%emt 0:00:49]} 17. h4 {[%emt 0:16:28]} Rae8 {[%emt 0:07:28]} 18. Kh2 {[%emt 0:02:30]} Qc8 {[%emt 0:00:41]} 19. Qd2 {[%emt 0:01:21]} Kh7 {[%emt 0:01:01]} 20. Nd3 {[%emt 0:00:26]} Bh6 {[%emt 0:00:21]} 21. f4 {[%emt 0:00:15]} Qd8 {[%emt 0:08:48]} 22. Kh1 {[%emt 0:00:26]} Ng4 {[%emt 0:02:15]} 23. Nf2 {[%emt 0:00:53]} a6 {[%emt 0:02:17]} 24. b4 {[%emt 0:01:28]} f6 {[%emt 0:04:24]} 25. Nxg4 {[%emt 0:02:47]} Bxg4 {[%emt 0:01:34]} 26. Qd3 {[%emt 0:00:11]} Kh8 {[%emt 0:02:28]} 27. Bf3 {[%emt 0:05:04]} Bh3 {[%emt 0:01:22]} 28. Bg2 {[%emt 0:01:15]} Bd7 {[%emt 0:00:36]} 29. Ne2 {[%emt 0:00:30]} Qe7 {[%emt 0:01:14]} 30. Nd4 {[%emt 0:00:54]} g5 {[%emt 0:02:05]} 31. hxg5 {[%emt 0:01:41]} fxg5 {[%emt 0:00:02]} 32. f5 {[%emt 0:02:36]} Bg7 {[%emt 0:00:44]} 33. Ne6 {[%emt 0:00:26]} Bxe6 {[%emt 0:00:31]} 34. fxe6 {[%emt 0:00:50]} Be5 {[%emt 0:00:24]} 35. Rf5 {[%emt 0:00:52]} Rxf5 {[%emt 0:00:30]} 36. exf5 {[%emt 0:00:01]} Rf8 {[%emt 0:01:33]} 37. Be4 {[%emt 0:02:07]} g4 {[%emt 0:03:54]} 38. Qe3 {[%emt 0:00:26]} Kg7 {[%emt 0:00:43]} 39. Kg2 {[%emt 0:00:20]} Qf6 {[%emt 0:00:59]} 40. c5 {[%emt 0:01:02]} bxc5 {[%emt 0:01:02]} 41. bxc5 {[%emt 0:06:01]} Rb8 {[%emt 0:09:33]} 42. cxd6 {[%emt 0:13:36]} Bxd6 {[%emt 0:01:09]} 43. Bd3 {[%emt 0:01:23]} 1/2-1/2

[Event "Karel Janecek Open 2025"]
[Site "Prague"]
[Date "2025.03.02"]
[Round "4.7"]
[White "Zhao, Yuanhe"]
[Black "Eren, Ataberk"]
[Result "1/2-1/2"]
[Annotator "ChessBase"]
[ECO "A11"]
[WhiteElo "2466"]
[BlackElo "2402"]
[PlyCount "94"]
[EventDate "2025.02.21"]
[EventType "swiss"]
[EventCountry "CZE"]
[SourceTitle "playchess.com"]
[Source "ChessBase"]
[SourceQuality "1"]
[TimeControl "40/5400+30:1800+30"]

1. c4 {[%emt 0:00:41]} Nf6 {[%emt 0:06:35]} 2. Nf3 {[%emt 0:00:08]} c6 {[%emt 0:00:04]} 3. Nc3 {[%emt 0:00:08]} d5 {[%emt 0:00:04]} 4. e3 {[%emt 0:00:06]} e6 {[%emt 0:00:08]} 5. b3 {[%emt 0:00:49]} Bd6 {[%emt 0:01:07]} 6. Bb2 {[%emt 0:00:08]} O-O {[%emt 0:00:10]} 7. h3 {[%emt 0:01:06]} e5 {[%emt 0:04:51]} 8. cxd5 {[%emt 0:00:14]} cxd5 {[%emt 0:00:05]} 9. Nb5 {[%emt 0:00:04]} Nc6 {[%emt 0:00:50]} 10. Nxd6 {[%emt 0:00:09]} Qxd6 {[%emt 0:00:04]} 11. Bb5 {[%emt 0:00:06]} Nd7 {[%emt 0:09:23]} 12. Rc1 {[%emt 0:05:55]} Qg6 {[%emt 0:08:32]} 13. O-O {[%emt 0:02:48]} e4 {[%emt 0:10:58]} 14. Nh4 {[%emt 0:06:57]} Qe6 {[%emt 0:07:46]} 15. Bxc6 {[%emt 0:12:17]} bxc6 {[%emt 0:00:10]} 16. Qg4 {[%emt 0:00:06]} Nf6 {[%emt 0:02:43]} 17. Qf4 {[%emt 0:00:09]} Nh5 {[%emt 0:07:16]} 18. Qg5 {[%emt 0:04:36]} g6 {[%emt 0:02:44]} 19. g4 {[%emt 0:01:09]} f6 {[%emt 0:01:08]} 20. Qh6 {[%emt 0:00:07]} Ng7 {[%emt 0:00:18]} 21. f4 {[%emt 0:02:08]} Qd7 {[%emt 0:08:31]} 22. f5 {[%emt 0:11:42]} g5 {[%emt 0:01:26]} 23. Bxf6 {[%emt 0:00:13]} gxh4 {[%emt 0:06:13]} 24. Rxc6 {[%emt 0:00:10]} Rf7 {[%emt 0:00:57]} 25. Be5 {[%emt 0:10:25]} Qe8 {[%emt 0:03:00]} 26. Bd4 {[%emt 0:04:55]} Bb7 {[%emt 0:05:08]} 27. Rg6 {[%emt 0:00:46]} Qd7 {[%emt 0:08:02]} 28. Rg5 {[%emt 0:00:08]} Qc7 {[%emt 0:00:52]} 29. Rf4 {[%emt 0:01:38]} Rc8 {[%emt 0:02:45]} 30. Bxg7 {[%emt 0:01:45]} Rxg7 {[%emt 0:00:42]} 31. f6 {[%emt 0:00:06]} Rxg5 {[%emt 0:00:58]} 32. Qxg5+ {[%emt 0:10:28]} Kh8 {[%emt 0:00:19]} 33. Qh6 {[%emt 0:01:31]} Qf7 {[%emt 0:00:30]} 34. Rf5 {[%emt 0:00:55]} Rg8 {[%emt 0:01:21]} 35. Qxh4 {[%emt 0:06:22]} Bc8 {[%emt 0:00:07]} 36. Re5 {[%emt 0:03:14]} Be6 {[%emt 0:00:29]} 37. Qf2 {[%emt 0:00:55]} Rf8 {[%emt 0:00:24]} 38. g5 {[%emt 0:01:05]} Re8 {[%emt 0:00:48]} 39. Qf4 {[%emt 0:03:17]} a6 {[%emt 0:01:07]} 40. h4 {[%emt 0:00:50]} Bd7 {[%emt 0:01:20]} 41. Rxd5 {[%emt 0:36:11]} Qxd5 {[%emt 0:30:33]} 42. f7 {[%emt 0:01:21]} Kg7 {[%emt 0:00:00]} 43. Qf6+ {[%emt 0:00:00]} Kf8 {[%emt 0:00:00]} 44. fxe8=Q+ {[%emt 0:00:00]} Kxe8 {[%emt 0:00:00]} 45. Qh8+ {[%emt 0:00:00]} Ke7 {[%emt 0:00:00]} 46. Qf6+ {[%emt 0:00:00]} Ke8 {[%emt 0:00:00]} 47. Qh8+ {[%emt 0:00:00]} Ke7 {[%emt 0:00:00]} 1/2-1/2

[Event "Karel Janecek Open 2025"]
[Site "Prague"]
[Date "2025.03.02"]
[Round "4.8"]
[White "Sofronie, Iulian"]
[Black "Kraus, Tomas"]
[Result "1/2-1/2"]
[Annotator "ChessBase"]
[ECO "D00"]
[WhiteElo "2380"]
[BlackElo "2451"]
[PlyCount "53"]
[EventDate "2025.02.21"]
[EventType "swiss"]
[EventCountry "CZE"]
[SourceTitle "playchess.com"]
[Source "ChessBase"]
[SourceQuality "1"]
[TimeControl "40/5400+30:1800+30"]

1. d4 {[%emt 0:00:05]} d5 {[%emt 0:00:56]} 2. Bf4 {[%emt 0:00:15]} e6 {[%emt 0:00:47]} 3. e3 {[%emt 0:00:24]} Nf6 {[%emt 0:00:45]} 4. Nd2 {[%emt 0:01:19]} Bd6 {[%emt 0:00:37]} 5. Bg3 {[%emt 0:00:07]} c5 {[%emt 0:00:58]} 6. c3 {[%emt 0:00:22]} Qc7 {[%emt 0:00:41]} 7. dxc5 {[%emt 0:00:23]} Qxc5 {[%emt 0:02:39]} 8. Ngf3 {[%emt 0:00:22]} O-O {[%emt 0:02:07]} 9. Bd3 {[%emt 0:00:43]} Nbd7 {[%emt 0:10:56]} 10. Qe2 {[%emt 0:05:35]} Re8 {[%emt 0:12:13]} 11. e4 {[%emt 0:22:47]} dxe4 {[%emt 0:03:36]} 12. Bxe4 {[%emt 0:01:11]} Rb8 {[%emt 0:07:25]} 13. Rd1 {[%emt 0:11:14]} Bxg3 {[%emt 0:02:59]} 14. hxg3 {[%emt 0:00:53]} b5 {[%emt 0:03:50]} 15. g4 {[%emt 0:01:03]} h6 {[%emt 0:02:42]} 16. g5 {[%emt 0:16:08]} hxg5 {[%emt 0:01:52]} 17. Nb3 {[%emt 0:02:02]} Qc4 {[%emt 0:07:21]} 18. Nxg5 {[%emt 0:00:28]} Qxe2+ {[%emt 0:01:10]} 19. Kxe2 {[%emt 0:00:04]} Ne5 {[%emt 0:02:49]} 20. f4 {[%emt 0:04:49]} Nxe4 {[%emt 0:04:05]} 21. Nxe4 {[%emt 0:00:16]} Nc4 {[%emt 0:00:19]} 22. Rh4 {[%emt 0:16:34]} Bb7 {[%emt 0:05:51]} 23. Nbc5 {[%emt 0:01:54]} Bc6 {[%emt 0:04:54]} 24. b3 {[%emt 0:00:45]} Nb6 {[%emt 0:00:15]} 25. Nd6 {[%emt 0:06:33]} Red8 {[%emt 0:01:58]} 26. Na6 {[%emt 0:01:46]} Ra8 {[%emt 0:04:02]} 27. Nc7 {[%emt 0:00:06]} 1/2-1/2

[Event "Karel Janecek Open 2025"]
[Site "Prague"]
[Date "2025.03.02"]
[Round "4.9"]
[White "Nyzhnyk, Illya"]
[Black "Svanda, Ondrej"]
[Result "1-0"]
[Annotator "ChessBase"]
[ECO "D46"]
[WhiteElo "2569"]
[BlackElo "2383"]
[PlyCount "101"]
[EventDate "2025.02.21"]
[EventType "swiss"]
[EventCountry "CZE"]
[SourceTitle "playchess.com"]
[Source "ChessBase"]
[SourceQuality "1"]
[TimeControl "40/5400+30:1800+30"]

1. Nf3 {[%emt 0:00:08]} d5 {[%emt 0:00:05]} 2. e3 {[%emt 0:00:14]} Nf6 {[%emt 0:00:14]} 3. c4 {[%emt 0:00:05]} c6 {[%emt 0:00:11]} 4. Nc3 {[%emt 0:00:19]} e6 {[%emt 0:00:28]} 5. b3 {[%emt 0:00:17]} Bd6 {[%emt 0:00:09]} 6. Bb2 {[%emt 0:00:05]} O-O {[%emt 0:00:18]} 7. d4 {[%emt 0:00:20]} Nbd7 {[%emt 0:01:09]} 8. Bd3 {[%emt 0:01:03]} e5 {[%emt 0:04:42]} 9. cxd5 {[%emt 0:00:46]} cxd5 {[%emt 0:00:02]} 10. dxe5 {[%emt 0:00:29]} Nxe5 {[%emt 0:00:02]} 11. Be2 {[%emt 0:00:32]} Nxf3+ {[%emt 0:14:44]} 12. Bxf3 {[%emt 0:00:08]} Be5 {[%emt 0:00:01]} 13. O-O {[%emt 0:00:38]} Bf5 {[%emt 0:07:07]} 14. Qe2 {[%emt 0:00:07]} Qa5 {[%emt 0:20:12]} 15. Rac1 {[%emt 0:10:00]} Rfe8 {[%emt 0:03:46]} 16. Na4 {[%emt 0:00:13]} Bxb2 {[%emt 0:03:05]} 17. Qxb2 {[%emt 0:01:59]} Bg4 {[%emt 0:03:45]} 18. Bxg4 {[%emt 0:02:44]} Nxg4 {[%emt 0:00:01]} 19. Rc5 {[%emt 0:00:09]} Qd8 {[%emt 0:00:25]} 20. Qd4 {[%emt 0:00:09]} Nf6 {[%emt 0:02:20]} 21. Nc3 {[%emt 0:00:07]} b6 {[%emt 0:02:27]} 22. Rb5 {[%emt 0:00:56]} Qd7 {[%emt 0:06:18]} 23. a4 {[%emt 0:00:05]} Red8 {[%emt 0:03:06]} 24. Rd1 {[%emt 0:00:56]} Rac8 {[%emt 0:00:03]} 25. h3 {[%emt 0:08:12]} Kf8 {[%emt 0:01:20]} 26. Nxd5 {[%emt 0:02:36]} Nxd5 {[%emt 0:00:02]} 27. Rxd5 {[%emt 0:00:06]} Qxd5 {[%emt 0:00:03]} 28. Qxd5 {[%emt 0:00:07]} Rxd5 {[%emt 0:00:01]} 29. Rxd5 {[%emt 0:00:08]} Rc1+ {[%emt 0:03:24]} 30. Kh2 {[%emt 0:00:04]} Ke7 {[%emt 0:00:01]} 31. Rd3 {[%emt 0:01:47]} Rc5 {[%emt 0:04:02]} 32. Kg3 {[%emt 0:00:06]} a5 {[%emt 0:01:48]} 33. Kf3 {[%emt 0:00:28]} Ke6 {[%emt 0:00:38]} 34. g4 {[%emt 0:00:27]} h5 {[%emt 0:00:28]} 35. Ke4 {[%emt 0:00:16]} Rc2 {[%emt 0:09:15]} 36. f4 {[%emt 0:00:36]} h4 {[%emt 0:00:04]} 37. f5+ {[%emt 0:03:06]} Ke7 {[%emt 0:00:45]} 38. Kd5 {[%emt 0:02:27]} Rh2 {[%emt 0:01:09]} 39. e4 {[%emt 0:00:06]} Rg2 {[%emt 0:00:02]} 40. e5 {[%emt 0:00:50]} g6 {[%emt 0:01:32]} 41. f6+ {[%emt 0:32:23]} Ke8 {[%emt 0:31:40]} 42. Ke4 {[%emt 0:00:28]} Rg1 {[%emt 0:02:12]} 43. Kf4 {[%emt 0:01:28]} Rg2 {[%emt 0:00:10]} 44. Kg5 {[%emt 0:00:09]} Re2 {[%emt 0:00:05]} 45. Rd5 {[%emt 0:01:10]} Re3 {[%emt 0:00:15]} 46. Kh6 {[%emt 0:01:10]} Rxh3 {[%emt 0:00:15]} 47. e6 {[%emt 0:00:03]} fxe6 {[%emt 0:00:24]} 48. Kg7 {[%emt 0:00:03]} Rf3 {[%emt 0:00:36]} 49. Rd6 {[%emt 0:00:06]} h3 {[%emt 0:00:31]} 50. Rxe6+ {[%emt 0:00:04]} Kd7 {[%emt 0:00:03]} 51. Re2 {[%emt 0:00:08]} 1-0